bitfinex/quotes_SOLUSD_20241115
["timestamp","ask_amount","ask_price","bid_price","bid_amount"]
[1731713007614,0.25098,219.82,219.74,23.776884]
[1731713007935,12.37529518,219.83,219.76,32.51307918]
[1731713008142,12.37529518,219.83,219.76,8.73619518]
[1731713008343,12.37529518,219.83,219.77,23.776884]
[1731713009410,12.37529518,219.83,219.76,23.776884]
[1731713009827,3.6391,219.83,219.76,32.51307918]
[1731713010025,12.37529518,219.83,219.74,28.327584]
[1731713010226,12.37529518,219.83,219.77,23.776884]
[1731713012718,0.09367462,219.83,219.77,23.776884]
[1731713013032,0.09367462,219.83,219.77,32.51307918]
[1731713013927,0.09367462,219.83,219.77,23.776884]
[1731713014125,3.6393,219.82,219.77,23.776884]
[1731713017041,12.37549518,219.82,219.76,23.776884]
[1731713017640,0.09367462,219.79,219.74,8.73619518]
[1731713017818,0.09367462,219.79,219.73,8.73619518]
[1731713018024,8.8298698,219.79,219.71,8.73619518]
[1731713019146,0.09367462,219.77,219.71,8.73619518]
[1731713019326,0.09367462,219.77,219.72,23.776884]
[1731713019952,0.09367462,219.77,219.71,23.776884]
[1731713020827,0.09367462,219.77,219.71,32.51307918]
[1731713021146,3.6403,219.76,219.71,32.51307918]
[1731713024922,8.8298698,219.75,219.65,25.82964078]
[1731713025147,0.09367462,219.73,219.67,8.73619518]
[1731713025345,0.09367462,219.73,219.66,20.0]
[1731713025346,8.8298698,219.73,219.66,20.0]
[1731713025645,8.8298698,219.73,219.66,8.73619518]
[1731713026326,3.6409,219.72,219.66,8.73619518]
[1731713026841,3.6409,219.72,219.68,8.73619518]
[1731713027046,3.6409,219.72,219.66,23.776884]
[1731713027239,3.6409,219.72,219.67,8.73619518]
[1731713027444,3.6409,219.72,219.68,23.776884]
[1731713027747,3.6409,219.72,219.66,23.776884]
[1731713027946,3.6409,219.72,219.66,32.51307918]
[1731713035752,0.09367462,219.74,219.66,32.51307918]
[1731713035959,3.73427462,219.74,219.66,32.51307918]
[1731713042149,3.73427462,219.74,219.65,11.3815]
[1731713042150,8.8298698,219.69,219.61,8.73619518]
[1731713042338,0.09367462,219.67,219.61,8.73619518]
[1731713042540,28.73619518,219.67,219.59,8.73619518]
[1731713042746,0.12549,219.73,219.61,8.73619518]
[1731713042946,20.0,219.68,219.61,8.73619518]
[1731713043240,20.0,219.73,219.64,8.73619518]
[1731713043440,20.0,219.73,219.65,8.73619518]
[1731713043441,20.09367462,219.7,219.65,8.73619518]
[1731713043952,20.09367462,219.7,219.66,23.776884]
[1731713044252,8.73619518,219.72,219.66,23.776884]
[1731713044253,3.6414,219.69,219.66,23.776884]
[1731713044832,3.6414,219.69,219.65,23.776884]
[1731713045658,3.6414,219.69,219.65,32.51307918]
[1731713046734,3.6409,219.72,219.65,32.51307918]
[1731713046933,3.6409,219.72,219.67,23.776884]
[1731713048856,3.6409,219.72,219.66,23.776884]
[1731713050256,3.6409,219.72,219.65,23.776884]
[1731713052856,3.6409,219.72,219.65,32.51307918]
[1731713053339,3.6409,219.72,219.68,23.776884]
[1731713054747,0.09367462,219.73,219.68,23.776884]
[1731713054952,20.09367462,219.73,219.68,23.776884]
[1731713055338,20.0,219.73,219.68,23.776884]
[1731713055539,3.6403,219.76,219.69,8.73619518]
[1731713055848,23.6403,219.76,219.7,23.776884]
[1731713056359,3.6403,219.76,219.72,8.73619518]
[1731713056570,7.09739266,219.84,219.74,20.25098]
[1731713056863,124.8527041,219.9,219.74,20.25098]
[1731713056864,3.6387,219.86,219.83,23.776884]
[1731713057050,3.638,219.9,219.83,23.776884]
[1731713057862,0.09367462,219.89,219.83,23.776884]
[1731713058063,0.09367462,219.89,219.84,8.73619518]
[1731713058252,0.09367462,219.87,219.83,23.776884]
[1731713058456,0.09367462,219.87,219.82,23.776884]
[1731713059646,3.73197462,219.88,219.82,23.776884]
[1731713060854,3.73197462,219.88,219.84,23.776884]
[1731713062070,3.73167462,219.9,219.84,23.776884]
[1731713065966,12.4678698,219.9,219.84,23.776884]
[1731713066168,8.73619518,219.88,219.8,8.73619518]
[1731713066476,8.73619518,219.88,219.81,23.776884]
[1731713067479,3.6385,219.87,219.81,23.776884]
[1731713067779,3.6385,219.87,219.81,32.51307918]
[1731713068152,8.73619518,219.86,219.75,4.5504]
[1731713068353,8.73619518,219.86,219.78,8.73619518]
[1731713068677,3.6385,219.87,219.8,8.73619518]
[1731713069583,3.6385,219.87,219.81,23.776884]
[1731713069754,3.6385,219.87,219.84,23.776884]
[1731713069951,3.6385,219.87,219.85,8.73619518]
[1731713070256,3.6385,219.87,219.84,23.776884]
[1731713070257,3.6385,219.87,219.84,32.51307918]
[1731713071083,3.6381,219.89,219.84,32.51307918]
[1731713073268,3.6381,219.89,219.84,23.776884]
[1731713073673,23.6381,219.89,219.84,23.776884]
[1731713074975,23.6381,219.89,219.83,23.776884]
[1731713075775,8.73619518,219.85,219.74,31.377]
[1731713075973,8.73619518,219.85,219.78,8.73619518]
[1731713076479,8.73619518,219.86,219.79,8.73619518]
[1731713076681,8.73619518,219.84,219.76,28.89]
[1731713076979,8.73619518,219.83,219.76,37.62619518]
[1731713077358,8.73619518,219.84,219.77,8.73619518]
[1731713078072,8.73619518,219.84,219.78,23.776884]
[1731713078781,9.0971,219.85,219.78,23.776884]
[1731713078974,17.83329518,219.85,219.78,32.51307918]
[1731713079276,3.6373,219.94,219.83,8.98717518]
[1731713079486,8.73619518,219.92,219.85,23.776884]
[1731713080382,8.73619518,219.92,219.85,32.51307918]
[1731713080584,23.6378,219.91,219.85,32.51307918]
[1731713082688,3.6378,219.91,219.85,32.51307918]
[1731713083765,3.6378,219.91,219.85,23.776884]
[1731713083962,3.6378,219.91,219.85,32.51307918]
[1731713085267,3.6376,219.92,219.85,32.51307918]
[1731713086376,20.0,219.91,219.85,32.51307918]
[1731713087274,3.638,219.9,219.85,32.51307918]
[1731713088174,3.638,219.9,219.85,23.776884]
[1731713089785,3.638,219.9,219.85,32.51307918]
[1731713093875,3.638,219.9,219.85,23.776884]
[1731713094085,3.638,219.9,219.85,32.51307918]
[1731713097292,3.638,219.9,219.84,8.73619518]
[1731713097293,12.733,219.9,219.84,8.73619518]
[1731713097491,21.46919518,219.9,219.78,11.375]
[1731713097796,0.09367462,219.89,219.82,8.73619518]
[1731713098099,8.73619518,219.86,219.78,8.73619518]
[1731713098402,8.73619518,219.86,219.79,8.73619518]
[1731713098979,3.6388,219.85,219.79,8.73619518]
[1731713099387,21.47209518,219.85,219.78,8.73619518]
[1731713099996,21.47209518,219.85,219.73,24.027864]
[1731713099997,8.73619518,219.84,219.77,23.776884]
[1731713100494,8.73619518,219.84,219.77,32.51307918]
[1731713100691,21.47209518,219.85,219.77,32.51307918]
[1731713100890,21.47209518,219.85,219.78,8.73619518]
[1731713101198,21.47209518,219.85,219.79,32.51307918]
[1731713101199,12.7359,219.85,219.79,32.51307918]
[1731713101381,3.6388,219.85,219.81,8.73619518]
[1731713101595,3.6388,219.85,219.82,8.73619518]
[1731713102183,3.6388,219.85,219.78,0.25098]
[1731713102381,3.6388,219.85,219.82,8.73619518]
[1731713102695,37.83169518,219.89,219.82,8.73619518]
[1731713102696,3.6383,219.88,219.82,8.73619518]
[1731713105481,3.6383,219.88,219.83,23.776884]
[1731713106700,8.73619518,219.9,219.83,23.776884]
[1731713106913,3.6381,219.89,219.83,23.776884]
[1731713107209,12.37429518,219.89,219.82,23.776884]
[1731713107408,3.638,219.91,219.86,8.73619518]
[1731713107610,3.638,219.91,219.89,8.73619518]
[1731713108298,3.638,219.91,219.83,0.25098]
[1731713108499,3.638,219.91,219.84,8.73619518]
[1731713108895,12.37419518,219.91,219.84,8.73619518]
[1731713109290,3.638,219.91,219.84,8.73619518]
[1731713110215,3.638,219.91,219.86,8.73619518]
[1731713110395,3.638,219.91,219.88,8.73619518]
[1731713111103,20.0,219.88,219.79,8.73619518]
[1731713111304,8.73619518,219.87,219.79,8.73619518]
[1731713112319,3.6386,219.86,219.79,8.73619518]
[1731713112523,3.6386,219.86,219.8,23.776884]
[1731713113113,8.73619518,219.85,219.77,8.73619518]
[1731713113820,3.6386,219.86,219.79,8.73619518]
[1731713114303,3.6386,219.86,219.8,0.12549]
[1731713114514,3.6386,219.86,219.82,23.776884]
[1731713116618,3.6386,219.86,219.8,23.902374]
[1731713118592,3.6386,219.86,219.81,0.12549]
[1731713121612,32.37419518,219.9,219.83,0.12549]
[1731713121913,8.73619518,219.88,219.82,23.902374]
[1731713122497,8.73619518,219.88,219.81,0.25098]
[1731713122914,8.73619518,219.86,219.81,0.25098]
[1731713123315,8.73619518,219.88,219.81,0.25098]
[1731713123517,8.73619518,219.88,219.8,0.25098]
[1731713123718,3.6385,219.87,219.8,0.25098]
[1731713127410,3.6385,219.87,219.81,23.776884]
[1731713127731,3.6385,219.87,219.82,0.12549]
[1731713128708,3.6385,219.87,219.81,23.776884]
[1731713129432,3.6385,219.87,219.8,0.12549]
[1731713135328,3.6385,219.87,219.82,0.12549]
[1731713136440,28.73619518,219.89,219.82,0.12549]
[1731713136441,3.6383,219.88,219.82,0.12549]
[1731713137019,7.09739266,219.93,219.88,23.776884]
[1731713137243,14.19478532,219.94,219.92,23.902374]
[1731713137244,7.09739266,219.94,219.92,23.902374]
[1731713137437,168.99739266,219.99,219.94,23.776884]
[1731713137842,161.9,219.99,219.97,8.73619518]
[1731713138140,161.9,219.99,219.98,23.776884]
[1731713138624,161.9,219.99,219.9,11.3683]
[1731713138819,165.5366,219.99,219.94,23.776884]
[1731713139139,8.73619518,219.95,219.87,8.73619518]
[1731713139351,0.09367462,219.98,219.85,11.3709]
[1731713139352,8.73619518,219.93,219.85,11.3709]
[1731713139845,8.73619518,219.94,219.85,11.3709]
[1731713140038,8.73619518,219.94,219.87,8.73619518]
[1731713140427,3.6375,219.93,219.87,8.73619518]
[1731713141021,3.6375,219.93,219.88,23.776884]
[1731713142049,3.6375,219.93,219.87,8.73619518]
[1731713142526,3.6368,219.97,219.91,8.73619518]
[1731713142728,3.6368,219.97,219.88,23.776884]
[1731713142729,3.6368,219.97,219.93,8.73619518]
[1731713143344,3.6368,219.97,219.94,8.73619518]
[1731713143544,3.6368,219.97,219.95,8.73619518]
[1731713144252,161.9,219.99,219.96,8.73619518]
[1731713144548,161.9,219.99,219.98,8.73619518]
[1731713144728,161.9,219.99,219.98,32.51307918]
[1731713145347,161.9,219.99,219.91,11.3682]
[1731713145558,161.9,219.99,219.92,24.027864]
[1731713145733,161.9,219.99,219.98,8.73619518]
[1731713146847,161.9,219.99,219.98,13.63428918]
[1731713147223,161.9,219.99,219.98,37.53666318]
[1731713148427,161.9,219.99,219.98,37.8558278]
[1731713148628,161.9,219.99,219.98,51.49011698]
[1731713148924,87.912,220.0,219.99,98.76713862]
[1731713149128,87.912,220.0,219.99,126.03571698]
[1731713149348,87.912,220.0,219.99,132.00677337]
[1731713150442,87.912,220.0,219.99,55.93571698]
[1731713150635,87.912,220.0,219.99,42.08226318]
[1731713151344,87.912,220.0,219.99,37.53666318]
[1731713151734,87.912,220.0,219.98,13.63428918]
[1731713152547,87.912,220.0,219.97,13.63428918]
[1731713152743,87.912,220.0,219.98,13.63428918]
[1731713153130,87.912,220.0,219.99,13.63428918]
[1731713153554,87.912,220.0,219.99,37.7558278]
[1731713154539,87.912,220.0,219.99,28.66713862]
[1731713154746,87.912,220.0,219.99,42.3014278]
[1731713156467,87.912,220.0,219.99,37.66215318]
[1731713157147,87.912,220.0,219.97,24.99888918]
[1731713158243,87.912,220.0,219.98,0.12549]
[1731713160835,87.912,220.0,219.96,13.63428918]
[1731713161037,91.5484,220.0,219.9,4.5473]
[1731713161238,13.63428918,219.98,219.91,13.63428918]
[1731713161543,13.63428918,219.97,219.9,13.63428918]
[1731713161741,13.63428918,219.98,219.91,13.63428918]
[1731713162137,13.63428918,219.99,219.92,13.63428918]
[1731713162337,180.83826395,220.0,219.95,13.63428918]
[1731713162539,87.912,220.0,219.99,13.63428918]
[1731713162746,87.912,220.0,219.99,13.75977918]
[1731713164652,180.83826395,220.0,219.99,13.75977918]
[1731713165239,180.83826395,220.0,219.99,0.12549]
[1731713166537,180.83826395,220.0,219.99,13.75977918]
[1731713166759,87.912,220.0,219.99,37.66215318]
[1731713169465,87.912,220.0,219.99,37.7558278]
[1731713170259,87.912,220.0,219.99,51.39011698]
[1731713170866,87.912,220.0,219.99,37.7558278]
[1731713171169,87.912,220.0,219.99,37.66215318]
[1731713171341,87.912,220.0,219.99,13.88526918]
[1731713172656,87.912,220.0,219.99,37.7558278]
[1731713172868,87.912,220.0,219.99,37.66215318]
[1731713173247,87.912,220.0,219.99,37.7558278]
[1731713173649,87.912,220.0,219.99,37.66215318]
[1731713174353,87.912,220.0,219.97,13.63428918]
[1731713174551,91.5483,220.0,219.95,13.63428918]
[1731713174775,87.912,220.0,219.95,8.72750845]
[1731713175766,87.912,220.0,219.92,15.9145]
[1731713175767,87.912,220.0,219.98,8.72750845]
[1731713176338,87.912,220.0,219.93,24.12153862]
[1731713176339,87.912,220.0,219.94,4.5466]
[1731713176542,87.912,220.0,219.96,8.72750845]
[1731713176758,87.912,220.0,219.93,28.66833862]
[1731713176938,87.912,220.0,219.97,13.63424618]
[1731713177142,87.912,220.0,219.93,28.66833862]
[1731713177339,87.912,220.0,219.96,13.63424618]
[1731713178047,91.5483,220.0,219.95,13.63424618]
[1731713178249,91.5483,220.0,219.94,13.63424618]
[1731713178503,91.5483,220.0,219.93,24.027864]
[1731713178504,105.18254618,220.0,219.92,13.63424618]
[1731713178760,105.18254618,220.0,219.91,13.63424618]
[1731713178761,13.63424618,219.99,219.91,13.63424618]
[1731713178969,13.63424618,219.99,219.92,13.63424618]
[1731713179361,13.63424618,219.99,219.88,15.9175]
[1731713179567,13.63424618,219.98,219.88,15.9175]
[1731713179765,13.63424618,219.98,219.9,13.63424618]
[1731713180158,3.6368,219.97,219.9,13.63424618]
[1731713180355,13.63424618,219.96,219.89,13.63424618]
[1731713180542,13.63424618,219.96,219.85,4.5483]
[1731713180543,13.63424618,219.96,219.88,13.63424618]
[1731713181676,3.6371,219.95,219.88,13.63424618]
[1731713181850,13.63424618,219.93,219.86,13.63424618]
[1731713182376,3.6371,219.95,219.78,83.73424618]
[1731713182377,13.63424618,219.91,219.81,4.5491]
[1731713182560,13.63424618,219.89,219.82,13.63424618]
[1731713183353,13.63424618,219.9,219.83,13.63424618]
[1731713183755,3.6381,219.89,219.83,13.63424618]
[1731713184167,3.6381,219.89,219.83,37.53662018]
[1731713184374,17.27234618,219.89,219.82,13.63424618]
[1731713184552,17.27234618,219.89,219.81,13.63424618]
[1731713184553,13.63424618,219.88,219.81,13.63424618]
[1731713185157,13.63424618,219.86,219.79,13.63424618]
[1731713185385,13.63424618,219.85,219.78,13.63424618]
[1731713185554,13.63424618,219.84,219.76,13.63424618]
[1731713185877,13.63424618,219.89,219.71,22.7571]
[1731713185878,13.63424618,219.79,219.72,13.63424618]
[1731713186084,12.7341,219.88,219.71,25.01234618]
[1731713186085,13.63424618,219.78,219.71,25.01234618]
[1731713187078,17.27434618,219.78,219.71,25.01234618]
[1731713187574,17.27434618,219.78,219.69,13.63424618]
[1731713187575,13.63424618,219.76,219.69,13.63424618]
[1731713187961,13.63424618,219.74,219.66,13.63424618]
[1731713188163,13.63424618,219.72,219.65,13.63424618]
[1731713189275,17.27534618,219.71,219.64,13.63424618]
[1731713189456,3.6411,219.71,219.65,13.63424618]
[1731713190183,17.27534618,219.71,219.64,13.63424618]
[1731713190359,17.27534618,219.71,219.65,23.902374]
[1731713191171,17.27534618,219.71,219.64,13.63424618]
[1731713191378,13.63424618,219.69,219.61,13.63424618]
[1731713191555,13.63424618,219.69,219.58,4.554]
[1731713191556,13.63424618,219.7,219.63,13.63424618]
[1731713191975,13.63424618,219.67,219.6,13.63424618]
[1731713192280,13.63424618,219.67,219.53,14.8]
[1731713192281,13.63424618,219.63,219.53,14.7]
[1731713192468,13.63424618,219.63,219.55,13.63424618]
[1731713193380,3.6426,219.62,219.55,13.63424618]
[1731713193865,3.6426,219.62,219.57,13.63424618]
[1731713194266,3.6426,219.62,219.56,13.63424618]
[1731713197380,13.63424618,219.64,219.57,13.63424618]
[1731713197581,20.0,219.7,219.6,13.63424618]
[1731713197768,13.63424618,219.69,219.61,13.63424618]
[1731713197966,20.0,219.68,219.61,13.63424618]
[1731713198379,20.0,219.68,219.62,13.63424618]
[1731713198574,12.744,219.71,219.57,24.027864]
[1731713198575,13.63424618,219.71,219.64,13.63424618]
[1731713198776,3.6413,219.7,219.67,13.63424618]
[1731713198981,10.93690679,219.75,219.68,10.93690679]
[1731713199280,9.101,219.76,219.67,10.93690679]
[1731713199281,14.57750679,219.74,219.67,10.93690679]
[1731713199485,10.93690679,219.73,219.66,10.93690679]
[1731713199856,14.57750679,219.74,219.66,10.93690679]
[1731713200685,3.6406,219.74,219.67,10.93690679]
[1731713201263,10.93690679,219.77,219.7,10.93690679]
[1731713201474,10.93690679,219.77,219.69,0.12549]
[1731713201475,3.6404,219.76,219.72,10.93690679]
[1731713202163,3.6404,219.76,219.7,10.93690679]
[1731713202374,3.6404,219.76,219.68,10.93690679]
[1731713202375,14.57730679,219.76,219.68,10.93690679]
[1731713202574,10.93690679,219.74,219.66,10.93690679]
[1731713202868,10.93690679,219.74,219.67,23.902374]
[1731713203391,10.93690679,219.74,219.66,10.93690679]
[1731713203973,10.93690679,219.74,219.67,10.93690679]
[1731713204498,14.57770679,219.73,219.65,10.93690679]
[1731713205283,3.6408,219.73,219.66,10.93690679]
[1731713206571,3.6408,219.73,219.67,10.93690679]
[1731713208086,18.2974,219.82,219.71,10.93690679]
[1731713208087,10.93690679,219.78,219.71,10.93690679]
[1731713208286,3.6401,219.77,219.73,10.93690679]
[1731713208465,3.6401,219.77,219.71,10.93690679]
[1731713208671,10.93690679,219.76,219.69,10.93690679]
[1731713209675,3.6405,219.75,219.67,10.93690679]
[1731713210285,10.93690679,219.74,219.67,10.93690679]
[1731713211672,14.57770679,219.73,219.65,10.93690679]
[1731713212194,14.57770679,219.73,219.66,10.93690679]
[1731713213084,3.6408,219.73,219.66,10.93690679]
[1731713213775,3.6408,219.73,219.67,10.93690679]
[1731713215581,3.6408,219.73,219.69,10.93690679]
[1731713216015,3.6408,219.73,219.67,10.93690679]
[1731713216299,3.6408,219.73,219.66,0.12549]
[1731713216599,3.6408,219.73,219.66,27.76549]
[1731713216770,3.6408,219.73,219.66,0.12549]
[1731713221091,10.93690679,219.67,219.59,10.93690679]
[1731713221279,10.93690679,219.67,219.6,24.31]
[1731713221477,10.93690679,219.66,219.59,10.93690679]
[1731713221890,0.09367462,219.75,219.59,10.93690679]
[1731713221891,10.93690679,219.67,219.59,10.93690679]
[1731713222099,10.93690679,219.65,219.58,10.93690679]
[1731713222287,14.57920679,219.64,219.57,10.93690679]
[1731713223001,3.6423,219.64,219.57,10.93690679]
[1731713223798,14.57920679,219.64,219.57,10.93690679]
[1731713223987,10.93690679,219.63,219.56,10.93690679]
[1731713224295,3.6423,219.64,219.55,10.93690679]
[1731713224296,10.93690679,219.62,219.55,10.93690679]
[1731713224501,10.93690679,219.61,219.53,25.63690679]
[1731713224700,10.93690679,219.6,219.53,14.7]
[1731713225005,3.6423,219.64,219.53,14.7]
[1731713225006,20.0,219.63,219.53,14.7]
[1731713225300,14.58000679,219.59,219.53,14.7]
[1731713225495,3.6431,219.59,219.53,14.7]
[1731713225674,14.58000679,219.59,219.53,14.7]
[1731713226092,10.93690679,219.58,219.53,14.7]
[1731713227500,3.6434,219.57,219.53,14.7]
[1731713227698,10.93690679,219.55,219.53,14.7]
[1731713228800,10.93690679,219.54,219.53,14.7]
[1731713229211,30.93690679,219.54,219.53,14.7]
[1731713229502,34.58080679,219.54,219.53,14.7]
[1731713231032,34.67448141,219.54,219.53,14.7]
[1731713231191,34.67448141,219.54,219.53,12.3854]
[1731713231392,20.0,219.51,219.45,0.4344254]
[1731713231580,20.22549,219.53,219.45,0.4344254]
[1731713231581,10.93690679,219.48,219.45,0.4344254]
[1731713232110,10.93690679,219.47,219.45,0.4344254]
[1731713232285,10.93690679,219.48,219.45,0.4344254]
[1731713232484,10.93690679,219.51,219.45,0.4344254]
[1731713232886,10.93690679,219.52,219.45,0.4344254]
[1731713233100,3.6444,219.51,219.46,0.12549]
[1731713233305,3.6444,219.51,219.45,11.37133219]
[1731713233306,3.6444,219.51,219.45,0.4344254]
[1731713233604,14.58130679,219.51,219.45,0.4344254]
[1731713234898,3.6444,219.51,219.46,0.12549]
[1731713235105,14.58130679,219.51,219.46,0.12549]
[1731713235404,14.58130679,219.51,219.45,0.4344254]
[1731713235908,3.6444,219.51,219.46,0.12549]
[1731713236114,14.58130679,219.51,219.46,0.12549]
[1731713236314,14.58130679,219.51,219.45,0.4344254]
[1731713237783,3.6444,219.51,219.46,0.12549]
[1731713238694,3.6444,219.51,219.48,0.12549]
[1731713239011,3.1886,219.53,219.48,0.12549]
[1731713239197,3.1886,219.53,219.45,0.4344254]
[1731713239198,3.1886,219.53,219.45,11.37133219]
[1731713239392,3.1886,219.53,219.46,0.12549]
[1731713239796,10.93690679,219.52,219.46,0.12549]
[1731713240192,3.1889,219.51,219.46,0.12549]
[1731713241312,10.93690679,219.54,219.46,0.12549]
[1731713241485,3.1886,219.53,219.46,0.12549]
[1731713241984,3.1886,219.53,219.49,10.93690679]
[1731713242188,3.1886,219.53,219.5,0.12549]
[1731713242914,20.0,219.56,219.5,0.12549]
[1731713243206,3.1883,219.55,219.5,0.12549]
[1731713245488,11.03058141,219.54,219.45,0.4344254]
[1731713245689,3.1883,219.55,219.45,0.4344254]
[1731713245690,10.93690679,219.52,219.45,0.4344254]
[1731713246415,3.1889,219.51,219.45,0.4344254]
[1731713246589,3.1889,219.51,219.45,11.37133219]
[1731713246787,0.12549,219.62,219.49,10.93690679]
[1731713247006,10.93690679,219.58,219.49,10.93690679]
[1731713247310,10.9533271,219.58,219.5,10.9533271]
[1731713247912,27.0908,219.63,219.51,0.12549]
[1731713248213,10.9533271,219.59,219.51,0.12549]
[1731713249001,3.1879,219.58,219.51,0.12549]
[1731713250107,3.1879,219.58,219.45,22.7798525]
[1731713250108,10.9533271,219.52,219.45,0.4344254]
[1731713250308,10.9533271,219.56,219.45,0.4344254]
[1731713250309,10.9533271,219.47,219.45,0.4344254]
[1731713250496,30.9533271,219.51,219.45,0.4344254]
[1731713251088,10.9533271,219.51,219.45,0.4344254]
[1731713251505,0.1,219.57,219.45,0.4344254]
[1731713251506,3.189,219.5,219.45,0.4344254]
[1731713251687,14.1423271,219.5,219.45,0.4344254]
[1731713252614,10.96157862,219.5,219.45,0.4344254]
[1731713252811,14.15027862,219.52,219.46,0.12549]
[1731713252996,3.1887,219.52,219.46,0.12549]
[1731713253195,14.15027862,219.52,219.46,0.12549]
[1731713259804,3.1887,219.52,219.46,34.98944262]
[1731713260994,14.15027862,219.52,219.46,0.12549]
[1731713261414,14.15027862,219.52,219.45,0.4344254]
[1731713261613,10.96157862,219.5,219.45,0.4344254]
[1731713262017,10.96157862,219.48,219.45,0.4344254]
[1731713263211,3.1895,219.47,219.45,0.4344254]
[1731713263923,10.96157862,219.46,219.45,0.4344254]
[1731713272211,0.09367462,219.45,219.33,10.96157862]
[1731713272414,10.96157862,219.4,219.33,10.96157862]
[1731713273318,10.96157862,219.4,219.24,92.905]
[1731713273319,43.776884,219.33,219.23,0.4344254]
[1731713273516,10.96157862,219.31,219.23,0.4344254]
[1731713273713,10.96157862,219.31,219.23,11.39600402]
[1731713273912,3.1919,219.3,219.23,11.39600402]
[1731713274325,3.1919,219.3,219.23,0.4344254]
[1731713274736,3.1919,219.3,219.24,0.12549]
[1731713276720,3.1917,219.32,219.26,0.12549]
[1731713276924,3.1914,219.34,219.29,0.12549]
[1731713277125,3.1914,219.34,219.3,10.96157862]
[1731713277505,3.1911,219.36,219.31,0.12549]
[1731713277710,10.96157862,219.4,219.34,0.12549]
[1731713277922,10.96157862,219.41,219.34,0.12549]
[1731713278132,14.15177862,219.42,219.34,11.21255862]
[1731713279721,14.15177862,219.42,219.36,0.12549]
[1731713280726,10.96157862,219.43,219.36,10.96157862]
[1731713280919,3.1897,219.45,219.36,10.96157862]
[1731713281121,10.96157862,219.44,219.36,10.96157862]
[1731713282236,3.19,219.43,219.39,0.12549]
[1731713282742,3.19,219.43,219.36,10.96157862]
[1731713282743,14.15157862,219.43,219.36,10.96157862]
[1731713282936,14.15157862,219.43,219.37,0.12549]
[1731713283238,3.19,219.43,219.37,0.12549]
[1731713283823,3.19,219.43,219.4,0.12549]
[1731713284027,14.19478532,219.49,219.42,10.96157862]
[1731713284028,3.1898,219.45,219.42,10.96157862]
[1731713285019,3.1893,219.48,219.41,11.08706862]
[1731713285218,3.1893,219.48,219.42,10.96157862]
[1731713287523,10.96157862,219.48,219.41,11.08706862]
[1731713288722,3.1895,219.47,219.41,11.08706862]
[1731713288925,14.15107862,219.47,219.41,0.12549]
[1731713289244,3.1895,219.47,219.41,11.08706862]
[1731713289541,3.1892,219.49,219.45,10.96157862]
[1731713289838,3.1892,219.49,219.41,0.12549]
[1731713289839,10.96157862,219.48,219.41,10.96157862]
[1731713290145,10.96157862,219.48,219.42,0.12549]
[1731713290943,3.1895,219.47,219.42,11.08706862]
[1731713291144,3.1895,219.47,219.42,0.12549]
[1731713291727,3.1895,219.47,219.42,11.08706862]
[1731713292243,3.1895,219.47,219.42,0.12549]
[1731713292423,20.0,219.51,219.45,0.12549]
[1731713292424,3.1889,219.51,219.45,0.12549]
[1731713292824,10.96157862,219.49,219.43,0.12549]
[1731713293242,10.96157862,219.46,219.39,10.96157862]
[1731713293445,10.96157862,219.46,219.4,0.25098]
[1731713294232,3.1897,219.45,219.4,0.25098]
[1731713295321,10.96157862,219.47,219.4,10.96157862]
[1731713295545,10.96157862,219.47,219.41,0.12549]
[1731713296334,10.96157862,219.47,219.43,25.58]
[1731713296537,3.1896,219.46,219.43,25.58]
[1731713298335,3.1896,219.46,219.43,36.54157862]
[1731713298871,3.189,219.5,219.44,11.08706862]
[1731713299040,3.189,219.5,219.45,10.96157862]
[1731713299651,3.189,219.5,219.44,0.12549]
[1731713299855,3.189,219.5,219.44,11.08706862]
[1731713301562,3.189,219.5,219.47,10.96157862]
[1731713301766,3.189,219.5,219.48,0.12549]
[1731713302258,3.189,219.5,219.47,0.12549]
[1731713302548,3.1886,219.53,219.48,13.69581672]
[1731713302751,3.1886,219.53,219.49,0.12549]
[1731713302962,3.1886,219.53,219.49,13.82130672]
[1731713303258,3.1886,219.53,219.49,0.12549]
[1731713303556,3.1886,219.53,219.49,13.82130672]
[1731713303750,3.1886,219.53,219.5,13.69581672]